[Event "Live Chess"]
[Site "Chess.com"]
[Date "2024.06.01"]
[Round "-"]
[White "SimonB4a"]
[Black "grillage"]
[Result "1-0"]
[WhiteElo "2174"]
[BlackElo "1879"]
[TimeControl "300"]
[EndTime "11:59:52 PDT"]
[Termination "SimonB4a won by resignation"]

1. d4 {[%clk 0:04:58.6]} 1... e6 {[%clk 0:04:59]} 2. c4 {[%clk 0:04:57.5]} 2...
Bb4+ {[%clk 0:04:56.2]} 3. Bd2 {[%clk 0:04:55.8]} 3... Bxd2+ {[%clk 0:04:55.2]}
4. Nxd2 {[%clk 0:04:54.8]} 4... Nf6 {[%clk 0:04:54.4]} 5. g3 {[%clk 0:04:53.8]}
5... d6 {[%clk 0:04:53.4]} 6. Bg2 {[%clk 0:04:53]} 6... Qe7 {[%clk 0:04:52.1]}
7. Ngf3 {[%clk 0:04:49.2]} 7... e5 {[%clk 0:04:50.1]} 8. O-O {[%clk 0:04:38.1]}
8... O-O {[%clk 0:04:48.6]} 9. e4 {[%clk 0:04:32]} 9... Bg4 {[%clk 0:04:45.1]}
10. Qc2 {[%clk 0:04:24.4]} 10... Nc6 {[%clk 0:04:37.8]} 11. d5 {[%clk
0:04:21.9]} 11... Nb8 {[%clk 0:04:30.2]} 12. b4 {[%clk 0:04:11.9]} 12... a5
{[%clk 0:04:22]} 13. a3 {[%clk 0:04:10.3]} 13... Nbd7 {[%clk 0:04:09.2]} 14. h3
{[%clk 0:04:03.4]} 14... Bxf3 {[%clk 0:04:06.8]} 15. Nxf3 {[%clk 0:04:00.6]}
15... Ra7 {[%clk 0:03:58.8]} 16. Rfc1 {[%clk 0:03:53.9]} 16... Rfa8 {[%clk
0:03:56.7]} 17. Rab1 {[%clk 0:03:52.9]} 17... axb4 {[%clk 0:03:53.7]} 18. axb4
{[%clk 0:03:51.7]} 18... b6 {[%clk 0:03:45.2]} 19. Ne1 {[%clk 0:03:45.6]} 19...
Ne8 {[%clk 0:03:38.2]} 20. Nd3 {[%clk 0:03:40.8]} 20... Ra2 {[%clk 0:03:28.9]}
21. Rb2 {[%clk 0:03:36.9]} 21... R2a4 {[%clk 0:03:21.7]} 22. c5 {[%clk
0:03:23.5]} 22... bxc5 {[%clk 0:03:17.9]} 23. bxc5 {[%clk 0:03:22.5]} 23... Ndf6
{[%clk 0:02:50.3]} 24. cxd6 {[%clk 0:03:08.9]} 24... cxd6 {[%clk 0:02:48.7]} 25.
Nb4 {[%clk 0:03:07.8]} 25... Nd7 {[%clk 0:02:21.4]} 26. Nc6 {[%clk 0:02:57.7]}
26... Qf6 {[%clk 0:02:19.9]} 27. Rcb1 {[%clk 0:02:03.2]} 27... Nc5 {[%clk
0:02:13.2]} 28. Rb8 {[%clk 0:01:57.3]} 28... Kf8 {[%clk 0:01:59.9]} 29. Kh2
{[%clk 0:01:45.4]} 29... Ra2 {[%clk 0:01:56.1]} 30. R1b2 {[%clk 0:01:37.6]}
30... R2a4 {[%clk 0:01:36.2]} 31. Rxa8 {[%clk 0:01:22.6]} 31... Rxa8 {[%clk
0:01:34.6]} 32. Qb1 {[%clk 0:01:21.7]} 32... Nd3 {[%clk 0:01:25.4]} 33. Qxd3
{[%clk 0:01:15.9]} 1-0

[Event "Live Chess"]
[Site "Chess.com"]
[Date "2024.06.01"]
[Round "-"]
[White "DoctorMantisTobogganMD"]
[Black "Queensandpawns"]
[Result "0-1"]
[WhiteElo "2190"]
[BlackElo "2427"]
[TimeControl "300"]
[EndTime "11:59:55 PDT"]
[Termination "Queensandpawns won by resignation"]

1. e4 {[%clk 0:04:59]} 1... e5 {[%clk 0:04:58.8]} 2. Nc3 {[%clk 0:04:58.4]} 2...
Nf6 {[%clk 0:04:58.7]} 3. Bc4 {[%clk 0:04:57.6]} 3... Bc5 {[%clk 0:04:58.2]} 4.
d3 {[%clk 0:04:56.6]} 4... c6 {[%clk 0:04:57.4]} 5. f4 {[%clk 0:04:56]} 5... d5
{[%clk 0:04:55.3]} 6. fxe5 {[%clk 0:04:53.9]} 6... Ng4 {[%clk 0:04:54.6]} 7. e6
{[%clk 0:04:44.7]} 7... Bxe6 {[%clk 0:04:51.3]} 8. exd5 {[%clk 0:04:42.1]} 8...
Nf2 {[%clk 0:04:43.2]} 9. Qf3 {[%clk 0:04:41]} 9... cxd5 {[%clk 0:04:37.9]} 10.
Bb5+ {[%clk 0:04:38.9]} 10... Nc6 {[%clk 0:04:35.8]} 11. Na4 {[%clk 0:04:23.6]}
11... Nxh1 {[%clk 0:04:30]} 12. Nxc5 {[%clk 0:04:21.7]} 12... Qa5+ {[%clk
0:04:29.6]} 13. Bd2 {[%clk 0:04:20.7]} 13... Qxb5 {[%clk 0:04:29.2]} 14. Nxe6
{[%clk 0:04:20.1]} 14... fxe6 {[%clk 0:04:28.9]} 15. O-O-O {[%clk 0:04:14]}
15... O-O-O {[%clk 0:04:24.9]} 16. Nh3 {[%clk 0:04:13.1]} 16... Qa4 {[%clk
0:04:16.5]} 17. Kb1 {[%clk 0:04:06.5]} 17... Nd4 {[%clk 0:04:15.7]} 18. Qg4
{[%clk 0:03:50.3]} 18... h5 {[%clk 0:04:14.6]} 19. Qh4 {[%clk 0:03:36]} 19...
Qxc2+ {[%clk 0:04:12.7]} 20. Ka1 {[%clk 0:03:35]} 20... Qxd1+ {[%clk 0:04:12.4]}
0-1

[Event "Live Chess"]
[Site "Chess.com"]
[Date "2024.06.01"]
[Round "-"]
[White "Crowded_House"]
[Black "LL220284LL"]
[Result "0-1"]
[WhiteElo "1743"]
[BlackElo "2562"]
[TimeControl "300"]
[EndTime "12:00:36 PDT"]
[Termination "LL220284LL won by checkmate"]

1. d4 {[%clk 0:04:57.9]} 1... c6 {[%clk 0:04:55.8]} 2. c3 {[%clk 0:04:54.4]}
2... g6 {[%clk 0:04:52.7]} 3. Bg5 {[%clk 0:04:53.6]} 3... Bg7 {[%clk 0:04:50.3]}
4. e3 {[%clk 0:04:52.5]} 4... Qb6 {[%clk 0:04:49.7]} 5. Qb3 {[%clk 0:04:50.6]}
5... d5 {[%clk 0:04:48.2]} 6. Qxb6 {[%clk 0:04:49.3]} 6... axb6 {[%clk
0:04:48.1]} 7. Nf3 {[%clk 0:04:48]} 7... Nd7 {[%clk 0:04:47]} 8. Nbd2 {[%clk
0:04:47]} 8... Ngf6 {[%clk 0:04:44.6]} 9. Bd3 {[%clk 0:04:45.4]} 9... b5 {[%clk
0:04:39.2]} 10. a3 {[%clk 0:04:37.7]} 10... O-O {[%clk 0:04:23.4]} 11. O-O
{[%clk 0:04:35.5]} 11... Nb6 {[%clk 0:04:21.3]} 12. Rfe1 {[%clk 0:04:27.6]}
12... Re8 {[%clk 0:04:13.7]} 13. e4 {[%clk 0:04:22.1]} 13... dxe4 {[%clk
0:04:12.5]} 14. Nxe4 {[%clk 0:04:20.9]} 14... Nxe4 {[%clk 0:04:11.5]} 15. Bxe4
{[%clk 0:04:20]} 15... Nc4 {[%clk 0:04:10.5]} 16. Reb1 {[%clk 0:04:06.2]} 16...
e5 {[%clk 0:03:59.7]} 17. dxe5 {[%clk 0:03:57.8]} 17... Nxe5 {[%clk 0:03:59.6]}
18. Nxe5 {[%clk 0:03:55.2]} 18... Rxe5 {[%clk 0:03:58.4]} 19. Bxc6 {[%clk
0:03:40.7]} 19... bxc6 {[%clk 0:03:55.9]} 20. Bd2 {[%clk 0:03:36.7]} 20... Bf5
{[%clk 0:03:53.3]} 21. Re1 {[%clk 0:03:30.4]} 21... Rxe1+ {[%clk 0:03:47.8]} 22.
Bxe1 {[%clk 0:03:29.8]} 22... Re8 {[%clk 0:03:44.7]} 23. Rd1 {[%clk 0:03:12.9]}
23... h5 {[%clk 0:03:41.4]} 24. Kf1 {[%clk 0:03:06.1]} 24... Bc2 {[%clk
0:03:40.1]} 25. Rd2 {[%clk 0:03:03]} 25... Bb3 {[%clk 0:03:39.5]} 26. Rd6 {[%clk
0:02:54.8]} 26... Bc4+ {[%clk 0:03:38.2]} 27. Kg1 {[%clk 0:02:51.9]} 27... Rxe1#
{[%clk 0:03:36.7]} 0-1

[Event "Live Chess"]
[Site "Chess.com"]
[Date "2024.06.01"]
[Round "-"]
[White "Hoogleboogle"]
[Black "ossie57"]
[Result "0-1"]
[WhiteElo "1322"]
[BlackElo "1647"]
[TimeControl "300"]
[EndTime "12:00:41 PDT"]
[Termination "ossie57 won by resignation"]

1. d4 {[%clk 0:04:54.1]} 1... Nf6 {[%clk 0:04:55.6]} 2. c4 {[%clk 0:04:50.3]}
2... g6 {[%clk 0:04:54.6]} 3. Nc3 {[%clk 0:04:49.1]} 3... Bg7 {[%clk 0:04:54.1]}
4. Bg5 {[%clk 0:04:47.8]} 4... d6 {[%clk 0:04:53.3]} 5. e3 {[%clk 0:04:46.5]}
5... h6 {[%clk 0:04:52.4]} 6. Bh4 {[%clk 0:04:43.9]} 6... O-O {[%clk 0:04:51.6]}
7. Nf3 {[%clk 0:04:40.2]} 7... g5 {[%clk 0:04:50]} 8. Bg3 {[%clk 0:04:37.8]}
8... Nbd7 {[%clk 0:04:48.7]} 9. Bd3 {[%clk 0:04:35.2]} 9... b6 {[%clk
0:04:47.9]} 10. Rc1 {[%clk 0:04:18.7]} 10... Re8 {[%clk 0:04:45.7]} 11. Nd5
{[%clk 0:04:13.7]} 11... Nxd5 {[%clk 0:04:43.9]} 12. cxd5 {[%clk 0:04:11.1]}
12... c5 {[%clk 0:04:39.2]} 13. Rxc5 {[%clk 0:04:00.7]} 13... bxc5 {[%clk
0:04:37.2]} 14. Qc2 {[%clk 0:03:51.8]} 14... Qa5+ {[%clk 0:04:34.4]} 15. Nd2
{[%clk 0:03:47.7]} 15... cxd4 {[%clk 0:04:21.4]} 16. exd4 {[%clk 0:03:43.4]}
16... Ba6 {[%clk 0:04:10.2]} 17. Bxa6 {[%clk 0:03:34.9]} 17... Qxa6 {[%clk
0:04:09.2]} 18. Nc4 {[%clk 0:03:33.5]} 18... Rac8 {[%clk 0:04:05]} 19. b3 {[%clk
0:03:29.4]} 19... Nb6 {[%clk 0:04:01.8]} 20. O-O {[%clk 0:03:25.2]} 20... Nxc4
{[%clk 0:04:00.7]} 21. bxc4 {[%clk 0:03:22.8]} 21... Qxc4 {[%clk 0:03:59]} 22.
Qb3 {[%clk 0:03:11.3]} 22... Qxb3 {[%clk 0:03:56.8]} 23. axb3 {[%clk 0:03:09.9]}
23... Bxd4 {[%clk 0:03:55.7]} 24. Re1 {[%clk 0:03:01.8]} 24... Rb8 {[%clk
0:03:52.3]} 25. b4 {[%clk 0:02:54.8]} 25... Rxb4 {[%clk 0:03:50.4]} 26. Bxd6
{[%clk 0:02:52.1]} 26... Rb6 {[%clk 0:03:41]} 27. Bc7 {[%clk 0:02:36]} 27... Rb7
{[%clk 0:03:37.7]} 28. d6 {[%clk 0:02:32.6]} 28... Rxc7 {[%clk 0:03:32.8]} 29.
dxc7 {[%clk 0:02:22.1]} 29... Rc8 {[%clk 0:03:30.7]} 30. Rxe7 {[%clk 0:02:19.8]}
30... Bb6 {[%clk 0:03:29.1]} 31. g3 {[%clk 0:02:01.5]} 31... Rxc7 {[%clk
0:03:27.9]} 32. Rxc7 {[%clk 0:01:54.2]} 32... Bxc7 {[%clk 0:03:27.8]} 33. Kf1
{[%clk 0:01:50.9]} 33... a5 {[%clk 0:03:27]} 34. Ke2 {[%clk 0:01:49.7]} 34... a4
{[%clk 0:03:26.5]} 35. Kd2 {[%clk 0:01:48.8]} 35... a3 {[%clk 0:03:26]} 36. Kc2
{[%clk 0:01:47.8]} 36... Kg7 {[%clk 0:03:25.2]} 37. f3 {[%clk 0:01:45.3]} 37...
Kg6 {[%clk 0:03:22.8]} 38. g4 {[%clk 0:01:44]} 38... Kf6 {[%clk 0:03:21.9]} 39.
Kb3 {[%clk 0:01:40.6]} 39... Bd6 {[%clk 0:03:21.3]} 40. h3 {[%clk 0:01:36.8]}
40... Ke5 {[%clk 0:03:20.7]} 41. Ka2 {[%clk 0:01:35.4]} 41... Kf4 {[%clk
0:03:20.1]} 0-1

[Event "Live Chess"]
[Site "Chess.com"]
[Date "2024.06.01"]
[Round "-"]
[White "FortunatusMax"]
[Black "Mangoalo"]
[Result "0-1"]
[WhiteElo "904"]
[BlackElo "1035"]
[TimeControl "300"]
[EndTime "12:00:46 PDT"]
[Termination "Mangoalo won by checkmate"]

1. e4 {[%clk 0:04:58.7]} 1... d5 {[%clk 0:04:58.5]} 2. exd5 {[%clk 0:04:57.6]}
2... Qxd5 {[%clk 0:04:58.4]} 3. Nc3 {[%clk 0:04:53.2]} 3... Qa5 {[%clk
0:04:58.3]} 4. a3 {[%clk 0:04:51.8]} 4... Nf6 {[%clk 0:04:57.6]} 5. b4 {[%clk
0:04:51.1]} 5... Qb6 {[%clk 0:04:55.7]} 6. Be2 {[%clk 0:04:44.4]} 6... c5 {[%clk
0:04:54.6]} 7. Nf3 {[%clk 0:04:38.6]} 7... cxb4 {[%clk 0:04:53.2]} 8. axb4
{[%clk 0:04:36.6]} 8... Qxb4 {[%clk 0:04:50.6]} 9. Rb1 {[%clk 0:04:34.4]} 9...
Qa5 {[%clk 0:04:44.8]} 10. O-O {[%clk 0:04:29.2]} 10... e6 {[%clk 0:04:43.8]}
11. Bb5+ {[%clk 0:04:27.2]} 11... Bd7 {[%clk 0:04:40.8]} 12. Bxd7+ {[%clk
0:04:15.1]} 12... Nbxd7 {[%clk 0:04:39.9]} 13. h3 {[%clk 0:03:58.7]} 13... h6
{[%clk 0:04:36.8]} 14. Qe2 {[%clk 0:03:51.7]} 14... Bb4 {[%clk 0:04:34.4]} 15.
Qc4 {[%clk 0:03:39.2]} 15... Bxc3 {[%clk 0:04:24.8]} 16. dxc3 {[%clk 0:03:37.5]}
16... b6 {[%clk 0:04:16]} 17. Bf4 {[%clk 0:03:31.8]} 17... O-O {[%clk
0:04:13.7]} 18. Bd6 {[%clk 0:03:27.5]} 18... Rfc8 {[%clk 0:04:10.4]} 19. Qb4
{[%clk 0:03:23.4]} 19... Qxb4 {[%clk 0:03:55.1]} 20. Bxb4 {[%clk 0:03:23.3]}
20... a5 {[%clk 0:03:51.9]} 21. Ba3 {[%clk 0:03:21.9]} 21... Rxc3 {[%clk
0:03:49.2]} 22. Bb2 {[%clk 0:03:20.1]} 22... Rxc2 {[%clk 0:03:47.3]} 23. Nd4
{[%clk 0:03:16.5]} 23... Rc4 {[%clk 0:03:33.6]} 24. Nb5 {[%clk 0:03:14.9]} 24...
Rac8 {[%clk 0:03:29.4]} 25. Rbc1 {[%clk 0:03:10.7]} 25... Nd5 {[%clk 0:03:23.2]}
26. Nd6 {[%clk 0:03:07.7]} 26... Rxc1 {[%clk 0:03:20.6]} 27. Nxc8 {[%clk
0:03:05.5]} 27... Rxf1+ {[%clk 0:03:19.1]} 28. Kxf1 {[%clk 0:03:02.4]} 28... b5
{[%clk 0:03:14.2]} 29. g4 {[%clk 0:03:00]} 29... b4 {[%clk 0:03:11.3]} 30. Be5
{[%clk 0:02:55.7]} 30... Nxe5 {[%clk 0:03:08.3]} 31. Nd6 {[%clk 0:02:52.4]}
31... b3 {[%clk 0:03:05.6]} 32. Ke1 {[%clk 0:02:50.6]} 32... Nd3+ {[%clk
0:03:02.7]} 33. Kd2 {[%clk 0:02:49.3]} 33... b2 {[%clk 0:03:01.6]} 34. Kc2
{[%clk 0:02:46.8]} 34... a4 {[%clk 0:02:58.6]} 35. Nc4 {[%clk 0:02:45.8]} 35...
Nxf2 {[%clk 0:02:50.3]} 36. Nxb2 {[%clk 0:02:43.6]} 36... a3 {[%clk 0:02:47.7]}
37. Nc4 {[%clk 0:02:42.6]} 37... Nxh3 {[%clk 0:02:45.8]} 38. Nxa3 {[%clk
0:02:41.3]} 38... Nf2 {[%clk 0:02:44.4]} 39. Nc4 {[%clk 0:02:40.1]} 39... Nxg4
{[%clk 0:02:42.8]} 40. Nb2 {[%clk 0:02:39.1]} 40... Nge3+ {[%clk 0:02:40.8]} 41.
Kd3 {[%clk 0:02:37.9]} 41... Nf5 {[%clk 0:02:40.7]} 42. Ke4 {[%clk 0:02:36.4]}
42... h5 {[%clk 0:02:39.4]} 43. Kf3 {[%clk 0:02:35.4]} 43... g5 {[%clk
0:02:38.6]} 44. Nd3 {[%clk 0:02:33.4]} 44... Kg7 {[%clk 0:02:35.3]} 45. Ne5
{[%clk 0:02:30.9]} 45... Kf6 {[%clk 0:02:34]} 46. Nd7+ {[%clk 0:02:28]} 46...
Ke7 {[%clk 0:02:31.8]} 47. Ne5 {[%clk 0:02:26.4]} 47... f6 {[%clk 0:02:25.4]}
48. Ng6+ {[%clk 0:02:24.7]} 48... Kf7 {[%clk 0:02:24.1]} 49. Nh8+ {[%clk
0:02:19.6]} 49... Kg7 {[%clk 0:02:23.1]} 50. Ng6 {[%clk 0:02:16.2]} 50... Kxg6
{[%clk 0:02:21.8]} 51. Kg2 {[%clk 0:02:14.8]} 51... Nd4 {[%clk 0:02:20.1]} 52.
Kg3 {[%clk 0:02:12.3]} 52... e5 {[%clk 0:02:20]} 53. Kf2 {[%clk 0:02:10.8]}
53... e4 {[%clk 0:02:19.9]} 54. Ke1 {[%clk 0:02:09.6]} 54... e3 {[%clk
0:02:19.8]} 55. Kf1 {[%clk 0:02:08.2]} 55... f5 {[%clk 0:02:19.7]} 56. Ke1
{[%clk 0:02:07]} 56... f4 {[%clk 0:02:19.6]} 57. Kf1 {[%clk 0:02:06.4]} 57... g4
{[%clk 0:02:19.5]} 58. Kg1 {[%clk 0:02:05.6]} 58... h4 {[%clk 0:02:19.4]} 59.
Kg2 {[%clk 0:02:04.2]} 59... f3+ {[%clk 0:02:17.5]} 60. Kf1 {[%clk 0:02:03.2]}
60... e2+ {[%clk 0:02:15]} 61. Kf2 {[%clk 0:01:59.1]} 61... Ne3 {[%clk
0:02:09.7]} 62. Ke1 {[%clk 0:01:48.1]} 62... Ndc2+ {[%clk 0:02:08]} 63. Kd2
{[%clk 0:01:36.1]} 63... e1=Q+ {[%clk 0:02:07.6]} 64. Kd3 {[%clk 0:01:35]} 64...
Qd1+ {[%clk 0:02:01.4]} 65. Ke4 {[%clk 0:01:34]} 65... Qd5+ {[%clk 0:01:59.3]}
66. Kf4 {[%clk 0:01:33.1]} 66... Qf5# {[%clk 0:01:57.7]} 0-1

[Event "Live Chess"]
[Site "Chess.com"]
[Date "2024.06.01"]
[Round "-"]
[White "MagnersCarlsberg2870"]
[Black "Colm_Buckley"]
[Result "0-1"]
[WhiteElo "1867"]
[BlackElo "1830"]
[TimeControl "300"]
[EndTime "12:00:52 PDT"]
[Termination "Colm_Buckley won by resignation"]

1. Nf3 {[%clk 0:04:54.4]} 1... Nf6 {[%clk 0:04:57.8]} 2. g3 {[%clk 0:04:52.7]}
2... d5 {[%clk 0:04:55.2]} 3. d3 {[%clk 0:04:51.4]} 3... c5 {[%clk 0:04:54.5]}
4. Bg2 {[%clk 0:04:49]} 4... Nc6 {[%clk 0:04:53.9]} 5. Nbd2 {[%clk 0:04:47.5]}
5... Bg4 {[%clk 0:04:52.3]} 6. O-O {[%clk 0:04:46.3]} 6... e6 {[%clk 0:04:51.3]}
7. h3 {[%clk 0:04:45.2]} 7... Bxf3 {[%clk 0:04:49.8]} 8. Bxf3 {[%clk 0:04:42.1]}
8... Bd6 {[%clk 0:04:48.4]} 9. e4 {[%clk 0:04:39.2]} 9... dxe4 {[%clk
0:04:45.9]} 10. dxe4 {[%clk 0:04:38.1]} 10... Qc7 {[%clk 0:04:42.2]} 11. Nc4
{[%clk 0:04:32.7]} 11... Be5 {[%clk 0:04:18.5]} 12. Nxe5 {[%clk 0:04:30.7]}
12... Nxe5 {[%clk 0:04:03.8]} 13. Bg2 {[%clk 0:04:27.9]} 13... Rd8 {[%clk
0:04:00.4]} 14. Qe2 {[%clk 0:04:26.6]} 14... O-O {[%clk 0:03:55.6]} 15. Bf4
{[%clk 0:04:25.2]} 15... Nfd7 {[%clk 0:03:54.4]} 16. Rad1 {[%clk 0:04:21.3]}
16... Qb6 {[%clk 0:03:46.6]} 17. b3 {[%clk 0:04:18.2]} 17... Nc6 {[%clk
0:03:38.5]} 18. Bd6 {[%clk 0:04:13.5]} 18... Rfe8 {[%clk 0:03:36.3]} 19. Qh5
{[%clk 0:03:59.8]} 19... Nf6 {[%clk 0:03:25]} 20. Qxc5 {[%clk 0:03:56.5]} 20...
Qxc5 {[%clk 0:03:11.4]} 21. Bxc5 {[%clk 0:03:55.2]} 21... b6 {[%clk 0:03:00.2]}
22. Be3 {[%clk 0:03:41]} 22... Nb4 {[%clk 0:02:54.1]} 23. c3 {[%clk 0:03:32.5]}
23... Nxa2 {[%clk 0:02:50.6]} 24. c4 {[%clk 0:03:23.5]} 24... Nb4 {[%clk
0:02:39.8]} 25. f4 {[%clk 0:03:19.7]} 25... h6 {[%clk 0:02:26.4]} 26. Ra1 {[%clk
0:03:18.1]} 26... Nc2 {[%clk 0:02:20.1]} 27. Rae1 {[%clk 0:03:07.1]} 27... Rd3
{[%clk 0:02:19.2]} 28. Bc1 {[%clk 0:02:52.4]} 28... Rxg3 {[%clk 0:02:17.4]} 29.
Rd1 {[%clk 0:02:46]} 29... Rxb3 {[%clk 0:02:02.8]} 30. e5 {[%clk 0:02:42.6]}
30... Nh5 {[%clk 0:01:58.5]} 31. Rd7 {[%clk 0:02:33.5]} 31... Ng3 {[%clk
0:01:57]} 32. Rfd1 {[%clk 0:02:16.2]} 32... Ne2+ {[%clk 0:01:52.6]} 33. Kh1
{[%clk 0:02:13.8]} 33... Nxf4 {[%clk 0:01:35]} 34. Rxa7 {[%clk 0:02:08.8]} 34...
Nxg2 {[%clk 0:01:29.6]} 35. Kxg2 {[%clk 0:02:07.5]} 35... Ne3+ {[%clk
0:01:28.3]} 36. Bxe3 {[%clk 0:02:06.2]} 36... Rxe3 {[%clk 0:01:27.3]} 37. Rf1
{[%clk 0:02:05.3]} 37... Rf8 {[%clk 0:01:25.9]} 38. Rb7 {[%clk 0:02:03]} 38...
Rxe5 {[%clk 0:01:24.6]} 39. Rxb6 {[%clk 0:02:02.1]} 39... Rc5 {[%clk 0:01:23.4]}
40. Rc1 {[%clk 0:01:59.5]} 40... Rfc8 {[%clk 0:01:22.6]} 41. Rb4 {[%clk
0:01:56.8]} 41... g5 {[%clk 0:01:19.7]} 42. Kf3 {[%clk 0:01:55.8]} 42... Kg7
{[%clk 0:01:19.2]} 43. Ke4 {[%clk 0:01:54.7]} 43... f5+ {[%clk 0:01:17.6]} 44.
Kd4 {[%clk 0:01:53.7]} 44... Kf6 {[%clk 0:01:16.7]} 45. Rb6 {[%clk 0:01:45.4]}
45... h5 {[%clk 0:01:13.7]} 46. Re1 {[%clk 0:01:43.7]} 46... R5c6 {[%clk
0:01:08.9]} 47. Rb4 {[%clk 0:01:37.5]} 47... g4 {[%clk 0:01:07.3]} 48. hxg4
{[%clk 0:01:36]} 48... hxg4 {[%clk 0:01:05.1]} 49. Rh1 {[%clk 0:01:35.1]} 49...
f4 {[%clk 0:00:58]} 50. Rh6+ {[%clk 0:01:33]} 50... Kg5 {[%clk 0:00:57]} 51. Rh7
{[%clk 0:01:29.1]} 51... Rc5 {[%clk 0:00:51.6]} 52. Rg7+ {[%clk 0:01:24.6]}
52... Kf5 {[%clk 0:00:50.1]} 53. Rf7+ {[%clk 0:01:17.9]} 53... Kg5 {[%clk
0:00:49.2]} 54. Rg7+ {[%clk 0:01:17.1]} 54... Kf6 {[%clk 0:00:48.8]} 55. Rxg4
{[%clk 0:01:15.7]} 55... e5+ {[%clk 0:00:48.3]} 56. Kd3 {[%clk 0:01:08.7]} 56...
Kf5 {[%clk 0:00:47.3]} 57. Rg7 {[%clk 0:01:02.7]} 57... R8c7 {[%clk 0:00:43.7]}
58. Rxc7 {[%clk 0:00:59.2]} 58... Rxc7 {[%clk 0:00:42.1]} 59. Ke2 {[%clk
0:00:57.5]} 59... Rc5 {[%clk 0:00:39.5]} 60. Kf3 {[%clk 0:00:50.9]} 60... e4+
{[%clk 0:00:38.5]} 61. Kf2 {[%clk 0:00:49.5]} 61... Ke5 {[%clk 0:00:34.8]} 62.
Ra4 {[%clk 0:00:47.2]} 62... Kd4 {[%clk 0:00:33.6]} 63. Ke2 {[%clk 0:00:45.4]}
63... Rxc4 {[%clk 0:00:32.4]} 64. Ra8 {[%clk 0:00:43.8]} 64... Rc2+ {[%clk
0:00:31.1]} 65. Kd1 {[%clk 0:00:42.6]} 65... Rg2 {[%clk 0:00:27.3]} 66. Rd8+
{[%clk 0:00:41.1]} 66... Ke3 {[%clk 0:00:26.1]} 67. Ra8 {[%clk 0:00:36.2]} 67...
Rg1+ {[%clk 0:00:25.1]} 68. Kc2 {[%clk 0:00:35.1]} 68... f3 {[%clk 0:00:24.8]}
69. Ra3+ {[%clk 0:00:33.9]} 69... Kf4 {[%clk 0:00:24.1]} 70. Ra8 {[%clk
0:00:23.7]} 70... f2 {[%clk 0:00:22.7]} 71. Rf8+ {[%clk 0:00:22.5]} 71... Ke3
{[%clk 0:00:22.3]} 72. Kb3 {[%clk 0:00:16.3]} 72... f1=Q {[%clk 0:00:20.3]} 0-1

[Event "Live Chess"]
[Site "Chess.com"]
[Date "2024.06.01"]
[Round "-"]
[White "Ninifu"]
[Black "Bob2pen"]
[Result "1-0"]
[WhiteElo "2015"]
[BlackElo "1879"]
[TimeControl "300"]
[EndTime "12:00:53 PDT"]
[Termination "Ninifu won by resignation"]

1. d4 {[%clk 0:04:58.6]} 1... Nf6 {[%clk 0:04:58.7]} 2. c4 {[%clk 0:04:57.4]}
2... c5 {[%clk 0:04:57.6]} 3. d5 {[%clk 0:04:56.2]} 3... e6 {[%clk 0:04:56.4]}
4. Nc3 {[%clk 0:04:55]} 4... exd5 {[%clk 0:04:55.5]} 5. cxd5 {[%clk 0:04:54.6]}
5... d6 {[%clk 0:04:54.9]} 6. e4 {[%clk 0:04:54.1]} 6... g6 {[%clk 0:04:54.2]}
7. f4 {[%clk 0:04:53.7]} 7... Bg7 {[%clk 0:04:53.4]} 8. Nf3 {[%clk 0:04:53.3]}
8... O-O {[%clk 0:04:52.1]} 9. Be2 {[%clk 0:04:52.7]} 9... a6 {[%clk 0:04:51.1]}
10. a4 {[%clk 0:04:51.2]} 10... Bg4 {[%clk 0:04:49.6]} 11. O-O {[%clk
0:04:49.4]} 11... Nbd7 {[%clk 0:04:48.3]} 12. h3 {[%clk 0:04:48.7]} 12... Bxf3
{[%clk 0:04:46.8]} 13. Bxf3 {[%clk 0:04:48.2]} 13... Rb8 {[%clk 0:04:46.1]} 14.
g4 {[%clk 0:04:40]} 14... b5 {[%clk 0:04:44.1]} 15. Qc2 {[%clk 0:04:31.1]} 15...
b4 {[%clk 0:04:42.6]} 16. Nd1 {[%clk 0:04:27.6]} 16... Nb6 {[%clk 0:04:34.7]}
17. a5 {[%clk 0:04:21.4]} 17... Na8 {[%clk 0:04:31.6]} 18. Ne3 {[%clk
0:04:20.7]} 18... Nc7 {[%clk 0:04:28.9]} 19. Nc4 {[%clk 0:04:20]} 19... Nb5
{[%clk 0:04:26]} 20. Be3 {[%clk 0:04:09.6]} 20... Nd7 {[%clk 0:04:22.8]} 21. e5
{[%clk 0:03:47.4]} 21... dxe5 {[%clk 0:04:12.8]} 22. fxe5 {[%clk 0:03:39.4]}
22... Nxe5 {[%clk 0:04:11.7]} 23. Bxc5 {[%clk 0:03:32.7]} 23... Nd4 {[%clk
0:04:05.1]} 24. Qe4 {[%clk 0:03:23.9]} 24... Nexf3+ {[%clk 0:04:00]} 25. Rxf3
{[%clk 0:03:19.5]} 25... Re8 {[%clk 0:03:57.8]} 26. Qd3 {[%clk 0:02:55.5]} 26...
Qxd5 {[%clk 0:03:44.7]} 27. Bxd4 {[%clk 0:02:39]} 27... Bxd4+ {[%clk 0:03:33.9]}
28. Kg2 {[%clk 0:02:34.8]} 28... Rbc8 {[%clk 0:03:27.6]} 29. Nb6 {[%clk
0:02:09.2]} 29... Qxf3+ {[%clk 0:02:49.3]} 30. Kxf3 {[%clk 0:01:39.9]} 30...
Rcd8 {[%clk 0:02:47]} 31. Rd1 {[%clk 0:01:30.8]} 31... Bxb2 {[%clk 0:02:43.7]}
32. Qxd8 {[%clk 0:01:29.2]} 32... Rxd8 {[%clk 0:02:42.5]} 33. Rxd8+ {[%clk
0:01:28.4]} 33... Kg7 {[%clk 0:02:41.8]} 34. g5 {[%clk 0:01:24.6]} 34... Bc1
{[%clk 0:02:39.4]} 35. h4 {[%clk 0:01:22.7]} 35... b3 {[%clk 0:02:38]} 36. Nd5
{[%clk 0:01:20.8]} 36... b2 {[%clk 0:02:36.6]} 37. Nf6 {[%clk 0:01:19.9]} 1-0